Organisation Name,Organisation Code,Directorate/Service,Service Category Label,Service Code,Supplier Name,Supplier Reference,Payment Date,Transaction Number,Net Payments,Purpose of Spend,
North West Leicestershire District Council,31UH,Street Management,Environment Parks,ENOP,Park Hill Training Ltd,A043093,02/09/2020,1390902," 1,604.00 ",Training Expenditure,
North West Leicestershire District Council,31UH,Street Management,Environment Parks,ENOP,Data Academy Ltd,A043706,02/09/2020,1391582, 595.00 ,Training Expenditure,
North West Leicestershire District Council,31UH,Street Management,Environment Parks,ENOP,Groundsman Tools & Supplies LLP,A030744,02/09/2020,1398903, 541.31 ,Operational Purchases,
North West Leicestershire District Council,31UH,Leisure & Culture,Cultural Services Arts & Events,CULTEV,Mantle Community Arts Limited,A001039,02/09/2020,1399005," 3,500.00 ",Grants,
North West Leicestershire District Council,31UH,Leisure & Culture,Cultural Services Arts & Events,CULTEV,Mantle Community Arts Limited,A001039,02/09/2020,1399006," 3,500.00 ",Grants,
North West Leicestershire District Council,31UH,Housing,HRA Older Persons Service,HRAOPS,Tunstall Healthcare (UK) Limited,A001701,02/09/2020,1399504," 1,300.40 ",Alarm System Telephones,
North West Leicestershire District Council,31UH,Housing,HRA Older Persons Service,HRAOPS,Tunstall Healthcare (UK) Limited,A001701,02/09/2020,1399538, 562.05 ,Alarm System Telephones,
North West Leicestershire District Council,31UH,Finance,Financial Planning,FINPLA,Macildowie Associates Ltd,A046022,02/09/2020,1399870," 1,565.67 ",Agency Staff,
North West Leicestershire District Council,31UH,Property Services,Property Facilities Management,PROPFM,Citron Hygiene,A040930,02/09/2020,1399939, 542.20 ,Cleaning & Domestic Equipment,
North West Leicestershire District Council,31UH,Property Services,Property Commercial Lettings,PROPCL,IDP Group,A045557,02/09/2020,1400277," 4,300.00 ",Consultants Fees,
North West Leicestershire District Council,31UH,Housing Repairs,HRA Housing Repairs & Maintenance,HRAHRM,T & S Heating Ltd,A046054,02/09/2020,1399484, 536.40 ,Housing repairs,
North West Leicestershire District Council,31UH,Information Technology,ICT Services,ICT,Nviron Limited,A023640,02/09/2020,1399521," 1,069.00 ",Corporate IT Licences,
North West Leicestershire District Council,31UH,Information Technology,ICT Services,ICT,The Shaw Trust,A046274,02/09/2020,1399668," 4,558.00 ",Admin Equipment - Maintenance,
North West Leicestershire District Council,31UH,Street Management,Environment Transport,ENOT,Scarab Sweepers Limited,A001445,02/09/2020,1399869, 339.33 ,Non Scheduled Maintenance - Parts,
North West Leicestershire District Council,31UH,Street Management,Environment Waste Management,ENOWM,Weir & Carmichael Ltd,A032788,02/09/2020,1399895," 8,978.76 ",General Materials,
North West Leicestershire District Council,31UH,Information Technology,ICT Services,ICT,Reel Networks Limited,A042531,02/09/2020,1399907, 250.00 ,Admin Equipment - Maintenance,
North West Leicestershire District Council,31UH,Street Management,Environment Transport,ENOT,Selby's Garage (Woodhouse) Ltd,A044011,02/09/2020,1399916, 503.71 ,Hire Of Operational Equipment,
North West Leicestershire District Council,31UH,Finance,Revenues,REVS,Hinckley & Bosworth Borough Council,A000770,02/09/2020,1399920," 249,166.14 ",Shared Revs & Bens Partnership costs,
North West Leicestershire District Council,31UH,Planning & Development,Environment - Development Control,EDC,GHM Planning Limited,A034296,02/09/2020,1399936," 2,311.00 ",Agency Staff,
North West Leicestershire District Council,31UH,Information Technology,ICT Services,ICT,Premier Paper Group,A042438,02/09/2020,1399946, 754.68 ,Consumable Materials,
North West Leicestershire District Council,31UH,Property Services,Property Commercial Lettings,PROPCL,Develop Training Limited,A046016,02/09/2020,1399465, 490.00 ,Training Expenditure,
North West Leicestershire District Council,31UH,Property Services,Property Facilities Management,PROPFM,Coalville Times Ltd,A000374,02/09/2020,1399896, 291.60 ,Advertising,
North West Leicestershire District Council,31UH,Communications,Corporate - Customer Services,CS,Neopost Limited,A000079,02/09/2020,1399919," 2,175.62 ",Equipment Operating Leases,
North West Leicestershire District Council,31UH,Property Services,Property Commercial Lettings,PROPCL,Pitney Bowes Finance Plc,A032630,02/09/2020,1400272, 289.88 ,Equipment Operating Leases,
North West Leicestershire District Council,31UH,Street Management,Environment Waste Management,ENOWM,Groundsman Tools & Supplies LLP,A030744,09/09/2020,1399096, 429.58 ,Operational Equipment,
North West Leicestershire District Council,31UH,Street Management,Environment Transport,ENOT,Certas Energy Uk Ltd,A043448,09/09/2020,1399614," 13,433.47 ",Fuel,
North West Leicestershire District Council,31UH,Street Management,Environment Waste Management,ENOWM,One51 ES Plastics(UK) Ltd  t/a MGB Plastics,A044595,09/09/2020,1399930," 10,020.00 ",General Materials,
North West Leicestershire District Council,31UH,Street Management,Environment Waste Management,ENOWM,Sports & Leisure Management Ltd,A045556,09/09/2020,1399948," 10,665.72 ",Agency Staff,
North West Leicestershire District Council,31UH,Economic Development,Business Focus Group,BFG,White Young Green Environmental Ltd,A030438,09/09/2020,1399955," 5,856.00 ",Consultants Fees,
North West Leicestershire District Council,31UH,Information Technology,ICT Services,ICT,Six Degrees Technology Group Ltd,A044205,09/09/2020,1400284," 5,981.00 ",Admin Equipment - Maintenance,
North West Leicestershire District Council,31UH,Corporate Director,Human Resources,HR,EMB Excellence Limited,A039939,09/09/2020,1400299," 1,523.08 ",Training Expenditure,
North West Leicestershire District Council,31UH,Corporate Director,Human Resources,HR,Bassetlaw District Council,A034704,09/09/2020,1400308," 3,750.00 ",Computing,
North West Leicestershire District Council,31UH,Finance,Financial Planning,FINPLA,Sports & Leisure Management Ltd,A045556,09/09/2020,1400309," 75,103.41 ",Contract Payments (Other) Ext,
North West Leicestershire District Council,31UH,Information Technology,ICT Services,ICT,ACS Systems (UK) Ltd T/a ACS Office Solutions,A043447,09/09/2020,1400316," 8,640.00 ",Computing,
North West Leicestershire District Council,31UH,Information Technology,ICT Services,ICT,Cuttlefish Multimedia Ltd,A032102,09/09/2020,1400329," 1,718.33 ",Website Maintenance,
North West Leicestershire District Council,31UH,Property Services,Property Commercial Lettings,PROPCL,IDP Group,A045557,09/09/2020,1400336, 950.00 ,Legal & Professional Services,
North West Leicestershire District Council,31UH,Street Management,Environment Waste Management,ENOWM,Kaefer Ltd,A044187,09/09/2020,1400339, 774.03 ,Contract Payments (Dws) Ext,
North West Leicestershire District Council,31UH,Planning & Development,Environment - Development Control,EDC,Valuation Office Agency,A034291,09/09/2020,1400360, 800.00 ,External Legal Fees & Advice,
North West Leicestershire District Council,31UH,Chief Exec,Chief Executive,CHEX,TMP Worldwide Ltd,A045319,09/09/2020,1400364, 525.60 ,Advertising,
North West Leicestershire District Council,31UH,Street Management,Environment Parks,ENOP,George Browns Ltd,A044771,09/09/2020,1399633," 1,000.00 ",Operational Purchases,
North West Leicestershire District Council,31UH,Leisure & Culture,Sport & Physical Activity,SPA,Measham Leisure Centre,A027454,09/09/2020,1399892," 1,883.21 ",Measham LC Lifestyle DD,
North West Leicestershire District Council,31UH,Street Management,Environment - Street Scene,ESS,Cuckoo Gap Limited,A000438,09/09/2020,1399935, 260.00 ,Routine Ground Maintenance Expenditure,
North West Leicestershire District Council,31UH,Environmental Health,Environmental Health & Licensing,EEHL,Killgerm Chemicals Ltd,A000890,09/09/2020,1400291, 413.00 ,Baits & Poisons,
North West Leicestershire District Council,31UH,Chief Exec,Chief Executive,CHEX,Mewies Engineering Consultants Ltd,A043524,09/09/2020,1400319," 8,093.48 ",Consultants Fees,
North West Leicestershire District Council,31UH,Property Services,Property Facilities Management,PROPFM,IDP Group,A045557,09/09/2020,1400337," 2,500.00 ",Consultants Fees,
North West Leicestershire District Council,31UH,Property Services,Property Commercial Lettings,PROPCL,IDP Group,A045557,09/09/2020,1400338," 4,250.00 ",Consultants Fees,
North West Leicestershire District Council,31UH,Street Management,Environment - Street Scene,ESS,NPS Peterborough Ltd,A044569,09/09/2020,1400343, 500.00 ,Legal & Professional Services,
North West Leicestershire District Council,31UH,Planning & Development,Environment - Development Control,EDC,Landscape Science Consultancy Ltd,A045654,09/09/2020,1400350, 950.00 ,Consultants Fees,
North West Leicestershire District Council,31UH,Chief Exec,Chief Executive,CHEX,Pollards Fruit & Veg,A045637,09/09/2020,1400357, 320.00 ,Food Deliveries,
North West Leicestershire District Council,31UH,Finance,Housing Benefits,BENS,Capita Business Services Ltd,A002968,09/09/2020,1400361," 6,766.00 ",Computing,
North West Leicestershire District Council,31UH,Planning & Development,Environment Planning Policy,EPP,Carmel Edwards T/A CP Solutions,A043365,09/09/2020,1400290, 476.20 ,Consultants Fees,
North West Leicestershire District Council,31UH,Housing Repairs,HRA Housing Repairs & Maintenance,HRAHRM,Closomat Ltd,A045814,09/09/2020,1400387, 295.00 ,Plumbing & Heating,
North West Leicestershire District Council,31UH,Legal & Democratic,Legal Services,LDLS,Sellick Partnership (East Midlands) Limited,A036668,09/09/2020,1400482," 2,564.25 ",Agency Staff,
North West Leicestershire District Council,31UH,Corporate Director,Human Resources,HR,Wider Plan Ltd,A043948,09/09/2020,1400496," 1,290.00 ",Staff Benefit Scheme,
North West Leicestershire District Council,31UH,Street Management,Environment Transport,ENOT,Brush Technology Ltd,A044453,09/09/2020,1400497," 1,454.73 ",Hire Of Operational Equipment,
North West Leicestershire District Council,31UH,Housing Repairs,HRA Housing Repairs & Maintenance,HRAHRM,Travis Perkins Trading Co Ltd,A001693,09/09/2020,1400500," 15,462.80 ",General Materials,
North West Leicestershire District Council,31UH,Housing Repairs,HRA Housing Repairs & Maintenance,HRAHRM,Travis Perkins Trading Co Ltd,A001693,09/09/2020,1400501," 1,626.46 ",General Materials,
North West Leicestershire District Council,31UH,Leisure & Culture,Cultural Services Arts & Events,CULTEV,Reflec Signs & Graphics Ltd,A025348,09/09/2020,1400327, 705.00 ,Event Expenditure,
North West Leicestershire District Council,31UH,Street Management,Environment Parks,ENOP,Landscape Supply Company,A041669,09/09/2020,1400356, 368.62 ,Operational Purchases,
North West Leicestershire District Council,31UH,Information Technology,ICT Services,ICT,House on the Hill Software Ltd,A042199,09/09/2020,1399937, 280.00 ,Admin Equipment - Maintenance,
North West Leicestershire District Council,31UH,Property Services,Property Commercial Lettings,PROPCL,John Merison BMC Ltd,A001092,09/09/2020,1400302, 861.66 ,General Repairs,
North West Leicestershire District Council,31UH,Property Services,Property Facilities Management,PROPFM,FHP Property Consultants,A045928,09/09/2020,1400320, 750.00 ,Publicity & Promotion,
North West Leicestershire District Council,31UH,Property Services,Property Commercial Lettings,PROPCL,FHP Property Consultants,A045928,09/09/2020,1400322, 750.00 ,Publicity & Promotion,
North West Leicestershire District Council,31UH,Property Services,Property Commercial Lettings,PROPCL,Coalville Cleaning Services,A003037,09/09/2020,1400323," 2,448.00 ",Contract Cleaning,
North West Leicestershire District Council,31UH,Property Services,Property Facilities Management,PROPFM,Coalville Times Ltd,A000374,09/09/2020,1400325, 291.60 ,Advertising,
North West Leicestershire District Council,31UH,Street Management,Environment Parks,ENOP,Buxton's Ltd,A029426,09/09/2020,1400351, 472.31 ,Operational Purchases,
North West Leicestershire District Council,31UH,Street Management,Environment Transport,ENOT,Terberg Matec UK Limited,A001647,09/09/2020,1400383, 529.90 ,Non Scheduled Maintenance - Parts,
North West Leicestershire District Council,31UH,Street Management,Environment - Street Scene,ESS,Clancy Consulting,A046465,09/09/2020,1400388, 500.00 ,Contract Payments (Other) Ext,
North West Leicestershire District Council,31UH,Street Management,Environment Transport,ENOT,Second 2 None,A031408,09/09/2020,1400391," 7,540.00 ",Contract Cleaning,
North West Leicestershire District Council,31UH,Chief Exec,Chief Executive,CHEX,CPRE Commercial Property Real Estates Ltd,A045187,09/09/2020,1400393," 5,000.00 ",Advertising,
North West Leicestershire District Council,31UH,Street Management,Environment Transport,ENOT,Westbury Industrial Supplies Limited,A009933,09/09/2020,1400396, 425.00 ,Protective Clothing,
North West Leicestershire District Council,31UH,Leisure & Culture,Cultural Services Arts & Events,CULTEV,John Merison BMC Ltd,A001092,09/09/2020,1400398, 686.43 ,Operational Equipment,
North West Leicestershire District Council,31UH,Chief Exec,Chief Executive,CHEX,TMP Worldwide Ltd,A045319,09/09/2020,1400484," 2,530.00 ",Employee Advertising,
North West Leicestershire District Council,31UH,Housing Repairs,HRA Housing Repairs & Maintenance,HRAHRM,Halsall Lloyd Partnership,A045973,09/09/2020,1400485," 2,094.79 ",Legal & Professional Services,
North West Leicestershire District Council,31UH,Chief Exec,Chief Executive,CHEX,Phoenix Survey Services Ltd,A046420,09/09/2020,1400492, 660.00 ,Legal & Professional Services,
North West Leicestershire District Council,31UH,Housing Repairs,HRA Housing Repairs & Maintenance,HRAHRM,County Drains Leicester Ltd,A024295,17/09/2020,1398386, 285.00 ,Legal & Professional Services,
North West Leicestershire District Council,31UH,Environmental Health,Environmental Health & Licensing,EEHL,The Oyster Partnership Ltd,A032796,17/09/2020,1400487, 474.80 ,Agency Staff,
North West Leicestershire District Council,31UH,Property Services,Property Facilities Management,PROPFM,Regarde Security Ltd,A013049,17/09/2020,1400613, 777.65 ,Building Security,
North West Leicestershire District Council,31UH,Street Management,Environment Transport,ENOT,Watling JCB Ltd,A032114,17/09/2020,1400627, 650.16 ,Repairs - Parts,
North West Leicestershire District Council,31UH,Street Management,Environment Transport,ENOT,Euro Car Parts,A034532,17/09/2020,1400648, 340.10 ,Repairs - Parts,
North West Leicestershire District Council,31UH,Street Management,Environment Transport,ENOT,S & B Tyres Limited,A034071,17/09/2020,1400650, 500.00 ,Transport Costs - Tyres,
North West Leicestershire District Council,31UH,Information Technology,ICT Services,ICT,Nviron Limited,A023640,17/09/2020,1400654," 1,381.00 ",Admin Equipment - Maintenance,
North West Leicestershire District Council,31UH,Street Management,Environment - Street Scene,ESS,RAS Town Planning Services,A045293,17/09/2020,1400659," 2,925.00 ",Consultants Fees,
North West Leicestershire District Council,31UH,Housing Strategy,Community - Housing Strategy,HS,AA Empire Hotel Ltd,A045521,17/09/2020,1400668," 3,981.74 ",Homelessness Prevention,
North West Leicestershire District Council,31UH,Street Management,Environment Waste Management,ENOWM,Sports & Leisure Management Ltd,A045556,17/09/2020,1400669," 5,739.56 ",Agency Staff,
North West Leicestershire District Council,31UH,Communications,Corporate - Communications,CP,CFH Docmail Ltd,A046089,17/09/2020,1400686," 17,072.30 ",External  Printing,
North West Leicestershire District Council,31UH,Information Technology,ICT Services,ICT,Freedom Communications (UK) Ltd,A032826,17/09/2020,1400688, 773.51 ,C.O. - Call Charges,
North West Leicestershire District Council,31UH,Street Management,Environment - Street Scene,ESS,SLH Planning Solutions Limited,A044102,17/09/2020,1400697," 3,323.25 ",Consultants Fees,
North West Leicestershire District Council,31UH,Street Management,Environment Transport,ENOT,Mertrux Ltd,A035291,17/09/2020,1400699, 260.45 ,Scheduled Servicing - Parts,
North West Leicestershire District Council,31UH,Leisure & Culture,Cultural Services Arts & Events,CULTEV,Leicester City Council,A000935,17/09/2020,1400703," 2,250.00 ",Event Expenditure,
North West Leicestershire District Council,31UH,Property Services,Property Facilities Management,PROPFM,Midlands Cooling Services Ltd,A043433,17/09/2020,1400666, 280.00 ,General Repairs,
North West Leicestershire District Council,31UH,Street Management,Environment Transport,ENOT,Terberg Matec UK Limited,A001647,17/09/2020,1400672, 534.72 ,Non Scheduled Maintenance - Parts,
North West Leicestershire District Council,31UH,Street Management,Environment Transport,ENOT,Westbury Industrial Supplies Limited,A009933,17/09/2020,1400719, 377.85 ,Protective Clothing,
North West Leicestershire District Council,31UH,Corporate Director,Human Resources,HR,East Midlands Councils,A008942,17/09/2020,1400721," 4,800.00 ",Consultants Fees,
North West Leicestershire District Council,31UH,Street Management,Environment Transport,ENOT,Taylor Engineering & Fabrications Ltd,A036178,17/09/2020,1400724, 567.96 ,Non Scheduled Maintenance - Parts,
North West Leicestershire District Council,31UH,Street Management,Environment Transport,ENOT,Taylor Engineering & Fabrications Ltd,A036178,17/09/2020,1400758, 289.16 ,Non Scheduled Maintenance - Parts,
North West Leicestershire District Council,31UH,Street Management,Environment Transport,ENOT,S & B Tyres Limited,A034071,17/09/2020,1400762, 412.00 ,Transport Costs - Tyres,
North West Leicestershire District Council,31UH,Street Management,Environment Parks,ENOP,L Neal Tree Surgery,A046372,17/09/2020,1399632, 765.00 ,External Contractor Payments,
North West Leicestershire District Council,31UH,Information Technology,ICT Services,ICT,Chess Cybersecurity Formerly Foursys Ltd,A029908,17/09/2020,1399871," 1,650.00 ",Contract Payments (Other) Ext,
North West Leicestershire District Council,31UH,Finance,Financial Planning,FINPLA,Michael Page International Recruitment Ltd,A041893,17/09/2020,1400610," 3,675.00 ",Agency Staff,
North West Leicestershire District Council,31UH,Housing Repairs,HRA Housing Repairs & Maintenance,HRAHRM,Summers Inman,A045259,17/09/2020,1400618, 601.42 ,Legal & Professional Services,
North West Leicestershire District Council,31UH,Housing Repairs,HRA Housing Repairs & Maintenance,HRAHRM,Summers Inman,A045259,17/09/2020,1400619," 1,619.32 ",Legal & Professional Services,
North West Leicestershire District Council,31UH,Finance,Exchequer Services,EXCH,Insight Uk,A021505,17/09/2020,1400621," 4,765.37 ",Computing,
North West Leicestershire District Council,31UH,Street Management,Environment Transport,ENOT,Digraph Transport Supplies Ltd,A000486,17/09/2020,1400695, 764.47 ,Repairs - Parts,
North West Leicestershire District Council,31UH,Street Management,Environment Transport,ENOT,Mertrux Ltd,A035291,17/09/2020,1400726, 260.45 ,Scheduled Servicing - Parts,
North West Leicestershire District Council,31UH,Street Management,Environment Transport,ENOT,Second 2 None,A031408,17/09/2020,1400730," 6,810.00 ",Contract Cleaning,
North West Leicestershire District Council,31UH,Street Management,Environment Transport,ENOT,J F Lloyd & Sons,A000991,17/09/2020,1400734, 330.00 ,Hire Of Operational Equipment,
North West Leicestershire District Council,31UH,Street Management,Environment Transport,ENOT,Selby's Garage (Woodhouse) Ltd,A044011,17/09/2020,1400737, 823.65 ,Hire Of Operational Equipment,
North West Leicestershire District Council,31UH,Street Management,Environment Transport,ENOT,Aebi Schmidt Uk Limited,A017053,17/09/2020,1400744," 1,556.13 ",Non Scheduled Maintenance - Parts,
North West Leicestershire District Council,31UH,Street Management,Environment Transport,ENOT,Aebi Schmidt Uk Limited,A017053,17/09/2020,1400745, 503.76 ,Non Scheduled Maintenance - Parts,
North West Leicestershire District Council,31UH,Leisure & Culture,Cultural Services Arts & Events,CULTEV,KIWA CMT Testing,A045670,17/09/2020,1400667," 1,090.00 ",Event Expenditure,
North West Leicestershire District Council,31UH,Property Services,Property Commercial Lettings,PROPCL,Purchase Power,A008204,17/09/2020,1400684," 1,975.00 ",Postages,
North West Leicestershire District Council,31UH,Chief Exec,Chief Executive,CHEX,Sable Leigh Consultancy Ltd T/A SLC Rail,A042727,17/09/2020,1400764," 2,437.50 ",Consultants Fees,
North West Leicestershire District Council,31UH,Planning & Development,Environment - Development Control,EDC,DTA Ecology Ltd,A042148,17/09/2020,1400823, 945.00 ,External Legal Fees & Advice,
North West Leicestershire District Council,31UH,Planning & Development,Environment - Development Control,EDC,Rob Thompson Urbanism Limited,A045846,17/09/2020,1400834," 2,625.00 ",Consultants Fees,
North West Leicestershire District Council,31UH,Planning & Development,Environment - Development Control,EDC,TMP Worldwide Ltd,A045319,17/09/2020,1400835, 261.80 ,Advertising,
North West Leicestershire District Council,31UH,Information Technology,ICT Services,ICT,Adept Telecom Plc,A044193,17/09/2020,1400836," 13,320.75 ",Admin Equipment - Maintenance,
North West Leicestershire District Council,31UH,Legal & Democratic,Civic Expenses,LDCE,Civica Ltd,A021357,17/09/2020,1400483," 6,050.00 ",Software Licences,
North West Leicestershire District Council,31UH,Street Management,Environment Transport,ENOT,Riverside Truck Rental Ltd,A045702,17/09/2020,1400611," 2,448.30 ",Hire Of Transport,
North West Leicestershire District Council,31UH,Street Management,Environment Transport,ENOT,Riverside Truck Rental Ltd,A045702,17/09/2020,1400612," 3,759.00 ",Hire Of Transport,
North West Leicestershire District Council,31UH,Street Management,Environment Transport,ENOT,Enterprise Rent-A-Car UK Ltd,A046419,17/09/2020,1400861, 648.84 ,Hire Of Transport,
North West Leicestershire District Council,31UH,Street Management,Environment Transport,ENOT,Enterprise Rent-A-Car UK Ltd,A046419,17/09/2020,1400862, 440.72 ,Hire Of Transport,
North West Leicestershire District Council,31UH,Street Management,Environment Transport,ENOT,Enterprise Rent-A-Car UK Ltd,A046419,17/09/2020,1400863, 440.72 ,Hire Of Transport,
North West Leicestershire District Council,31UH,Street Management,Environment Transport,ENOT,Enterprise Rent-A-Car UK Ltd,A046419,17/09/2020,1400864, 635.36 ,Hire Of Transport,
North West Leicestershire District Council,31UH,Street Management,Environment Transport,ENOT,Enterprise Rent-A-Car UK Ltd,A046419,17/09/2020,1400865, 530.44 ,Hire Of Transport,
North West Leicestershire District Council,31UH,Street Management,Environment Transport,ENOT,Certas Energy Uk Ltd,A043448,17/09/2020,1399613, 653.70 ,Fuel,
North West Leicestershire District Council,31UH,Information Technology,ICT Services,ICT,ACS Systems (UK) Ltd T/a ACS Office Solutions,A043447,17/09/2020,1399631," 2,923.00 ",Corporate PC Purchases,
North West Leicestershire District Council,31UH,Property Services,Property Commercial Lettings,PROPCL,John Merison BMC Ltd,A001092,17/09/2020,1400397, 383.93 ,General Repairs,
North West Leicestershire District Council,31UH,Legal & Democratic,Civic Expenses,LDCE,CfPS Conference Office,A037128,17/09/2020,1400858," 2,100.00 ",Training Expenditure,
North West Leicestershire District Council,31UH,Finance,Financial Planning,FINPLA,Michael Page International Recruitment Ltd,A041893,17/09/2020,1400859," 2,100.00 ",Agency Staff,
North West Leicestershire District Council,31UH,Street Management,Environment Transport,ENOT,Proactive Personnel (West Midlands) Ltd,A046046,17/09/2020,1400872, 980.00 ,Cleaning & Domestic Equipment,
North West Leicestershire District Council,31UH,Property Services,Property Commercial Lettings,PROPCL,Coalville Cleaning Services,A003037,23/09/2020,1398450, 592.95 ,Contract Cleaning,
North West Leicestershire District Council,31UH,Street Management,Environment Transport,ENOT,ESPO,A000958,23/09/2020,1399479, 354.00 ,Office Furniture,
North West Leicestershire District Council,31UH,Property Services,Property Commercial Lettings,PROPCL,Coalville Cleaning Services,A003037,23/09/2020,1399623, 653.25 ,Contract Cleaning,
North West Leicestershire District Council,31UH,Housing,HRA Performance & Business Support,HRAPBS,Marsh Limited,A042169,23/09/2020,1400948," 10,167.26 ",Tenants Contents Insurance Scheme,
North West Leicestershire District Council,31UH,Finance,Financial Planning,FINPLA,Macildowie Associates Ltd,A046022,23/09/2020,1400998," 1,684.72 ",Agency Staff,
North West Leicestershire District Council,31UH,Finance,Financial Planning,FINPLA,Macildowie Associates Ltd,A046022,23/09/2020,1400999," 1,565.67 ",Agency Staff,
North West Leicestershire District Council,31UH,Finance,Financial Planning,FINPLA,Macildowie Associates Ltd,A046022,23/09/2020,1401003," 1,652.25 ",Agency Staff,
North West Leicestershire District Council,31UH,Property Services,Property Commercial Lettings,PROPCL,John Merison BMC Ltd,A001092,23/09/2020,1400623, 369.37 ,General Repairs,
North West Leicestershire District Council,31UH,Leisure & Culture,Sport & Physical Activity,SPA,Elliott Group Limited,A005413,23/09/2020,1400679, 522.58 ,Portable Accomodation and Storage,
North West Leicestershire District Council,31UH,Leisure & Culture,Cultural Services Arts & Events,CULTEV,BE Furniture Ltd t/a BE Event Hire,A015349,23/09/2020,1400825, 375.00 ,Hire Of Transport,
North West Leicestershire District Council,31UH,Street Management,Environment Transport,ENOT,Aebi Schmidt Uk Limited,A017053,23/09/2020,1400925, 580.54 ,Repairs - Parts,
North West Leicestershire District Council,31UH,Street Management,Environment Waste Management,ENOWM,ESE World Limited,A001253,23/09/2020,1400929," 1,018.50 ",General Materials,
North West Leicestershire District Council,31UH,Street Management,Environment Transport,ENOT,Mertrux Ltd,A035291,23/09/2020,1400933, 744.93 ,Operational Equipment,
North West Leicestershire District Council,31UH,Street Management,Environment Parks,ENOP,Landscape Supply Company,A041669,23/09/2020,1400945, 326.75 ,Operational Purchases,
North West Leicestershire District Council,31UH,Street Management,Environment Transport,ENOT,Lee Wells Autobodies Ltd,A031849,23/09/2020,1400951, 370.00 ,Non Scheduled Maintenance - Parts,
North West Leicestershire District Council,31UH,Street Management,Environment Transport,ENOT,Michelin Tyre Plc,A046127,23/09/2020,1400966, 320.84 ,Transport Costs - Tyres,
North West Leicestershire District Council,31UH,Street Management,Environment Transport,ENOT,Parkers The Parts People,A044935,23/09/2020,1400978, 323.97 ,Non Scheduled Maintenance - Parts,
North West Leicestershire District Council,31UH,Chief Exec,Chief Executive,CHEX,Solace Group Ltd,A015641,23/09/2020,1400985, 250.00 ,Training Expenditure,
North West Leicestershire District Council,31UH,Street Management,Environment Transport,ENOT,Bucher Municipal Limited,A039355,23/09/2020,1401002, 413.50 ,Non Scheduled Maintenance - Parts,
North West Leicestershire District Council,31UH,Street Management,Environment Transport,ENOT,Westbury Industrial Supplies Limited,A009933,23/09/2020,1401019," 1,340.77 ",Operational Purchases,
North West Leicestershire District Council,31UH,Street Management,Environment Transport,ENOT,Stertil UK Ltd,A031644,23/09/2020,1401022, 378.23 ,Operational Equipment - Rep & Maint,
North West Leicestershire District Council,31UH,Street Management,Environment Transport,ENOT,RD Moore Ltd,A027519,23/09/2020,1401039, 320.00 ,Repairs - Parts,
North West Leicestershire District Council,31UH,Street Management,Environment - Street Scene,ESS,Coalville Cleaning Services,A003037,23/09/2020,1399622, 614.25 ,Cleaning & Domestic Equipment,
North West Leicestershire District Council,31UH,Street Management,Environment Waste Management,ENOWM,Groundsman Tools & Supplies LLP,A030744,23/09/2020,1400698," 1,713.75 ",Operational Equipment,
North West Leicestershire District Council,31UH,Street Management,Environment Transport,ENOT,Syston Rolling Shutters Ltd t/a Syston Doors,A001624,23/09/2020,1401021," 1,299.00 ",General Repairs ,
North West Leicestershire District Council,31UH,Information Technology,ICT Services,ICT,Firmstep,A030931,23/09/2020,1401111," 1,735.16 ",Computing,
North West Leicestershire District Council,31UH,Street Management,Environment Parks,ENOP,Tudor UK Ltd  (trading as Tudor Environmental),A043777,23/09/2020,1401112, 399.90 ,Operational Purchases,
North West Leicestershire District Council,31UH,Housing,HRA Housing Management,HRAHM,Aareon UK Ltd,A045197,23/09/2020,1401015, 870.00 ,Contract Payments (Other) Ext,
North West Leicestershire District Council,31UH,Housing,HRA Housing Management,HRAHM,Aareon UK Ltd,A045197,23/09/2020,1401016," 1,740.00 ",Contract Payments (Other) Ext,
North West Leicestershire District Council,31UH,Housing,HRA Housing Management,HRAHM,Aareon UK Ltd,A045197,23/09/2020,1401017, 870.00 ,Contract Payments (Other) Ext,
North West Leicestershire District Council,31UH,Housing,HRA Housing Management,HRAHM,Aareon UK Ltd,A045197,23/09/2020,1401018, 435.00 ,Contract Payments (Other) Ext,
North West Leicestershire District Council,31UH,Housing Repairs,HRA Housing Repairs & Maintenance,HRAHRM,Halsall Lloyd Partnership,A045973,23/09/2020,1401009," 2,500.00 ",Legal & Professional Services,
North West Leicestershire District Council,31UH,Street Management,Environment Parks,ENOP,Leicestershire County Council,A000950,02/09/2020,1399470, 356.88 ,Contract Cleaning,
North West Leicestershire District Council,31UH,Street Management,Environment Transport,ENOT,Park Hill Training Ltd,A043093,,1399596,"-1,604.00 ",Training Expenditure,
North West Leicestershire District Council,31UH,Housing Repairs,HRA Housing Repairs & Maintenance,HRAHRM,G Purchase Construction Ltd,A032830,02/09/2020,1399878," 1,190.50 ",Housing repairs,
North West Leicestershire District Council,31UH,Housing Repairs,HRA Housing Repairs & Maintenance,HRAHRM,G Purchase Construction Ltd,A032830,02/09/2020,1399879," 4,485.00 ",Housing repairs,
North West Leicestershire District Council,31UH,Housing Repairs,HRA Housing Repairs & Maintenance,HRAHRM,G Purchase Construction Ltd,A032830,02/09/2020,1399880," 2,898.00 ",Housing repairs,
North West Leicestershire District Council,31UH,Housing Repairs,HRA Housing Repairs & Maintenance,HRAHRM,G Purchase Construction Ltd,A032830,02/09/2020,1399881," 2,625.00 ",Housing repairs,
North West Leicestershire District Council,31UH,Housing Repairs,HRA Housing Repairs & Maintenance,HRAHRM,G Purchase Construction Ltd,A032830,02/09/2020,1399882, 819.72 ,Housing repairs,
North West Leicestershire District Council,31UH,Finance,Exchequer Services,EXCH,Click Travel Ltd,A044308,02/09/2020,1399883," 2,877.51 ",Travel and Subsitence,
North West Leicestershire District Council,31UH,Finance,Exchequer Services,EXCH,Comensura Limited,A036958,02/09/2020,1399884," 17,392.52 ",Agency Staff,
North West Leicestershire District Council,31UH,Housing,HRA Housing Management,HRAHM,JLA Limited,A043639,02/09/2020,1399917, 282.00 ,Cleaning & Domestic Equipment,
North West Leicestershire District Council,31UH,Housing,HRA Housing Management,HRAHM,PPG Architectural Coatings Ltd,A000876,02/09/2020,1399918," 2,027.28 ",Internal Decorations,
North West Leicestershire District Council,31UH,Housing Repairs,HRA Housing Repairs & Maintenance,HRAHRM,Antony Hodari holdings Ltd,A046040,02/09/2020,1399945," 6,000.00 ",Legal & Professional Services,
North West Leicestershire District Council,31UH,Economic Development,Business Focus Group,BFG,Redacted - Personal Data,A046463,02/09/2020,1400273," 7,000.00 ",Grants,
North West Leicestershire District Council,31UH,Economic Development,Business Focus Group,BFG,Socotec Asbestos Limited,A046464,02/09/2020,1400274, 575.00 ,Grants,
North West Leicestershire District Council,31UH,Corporate Director,Human Resources,HR,Arnold Clark Vehicle Management,A035549,02/09/2020,1400279," 4,319.54 ",Vehicle Leasing,
North West Leicestershire District Council,31UH,Housing Repairs,HRA Housing Repairs & Maintenance,HRAHRM,ESPO,A000958,02/09/2020,1400280, 373.55 ,Operational Purchases,
North West Leicestershire District Council,31UH,Housing,HRA Housing Management,HRAHM,JLA Limited,A043639,09/09/2020,1400305, 427.84 ,Cleaning & Domestic Equipment,
North West Leicestershire District Council,31UH,Finance,Exchequer Services,EXCH,Click Travel Ltd,A044308,09/09/2020,1400311, 602.57 ,Travel and Subsitence,
North West Leicestershire District Council,31UH,Information Technology,ICT Services,ICT,EE Ltd (Airtime),A018592,09/09/2020,1400313," 4,033.02 ",Mobile Telephones,
North West Leicestershire District Council,31UH,Information Technology,ICT Services,ICT,EE Ltd (Airtime),A018592,09/09/2020,1400314," 2,875.46 ",Mobile Telephones,
North West Leicestershire District Council,31UH,Information Technology,ICT Services,ICT,Canon UK Ltd,A040459,09/09/2020,1400334, 383.37 ,Equipment Operating Leases,
North West Leicestershire District Council,31UH,Information Technology,ICT Services,ICT,Canon UK Ltd,A040459,09/09/2020,1400342," 1,172.85 ",Photo Copier - Copy Charges Rental,
North West Leicestershire District Council,31UH,Finance,Exchequer Services,EXCH,Comensura Limited,A036958,09/09/2020,1400349," 23,652.36 ",Agency Staff,
North West Leicestershire District Council,31UH,Corporate Director,Human Resources,HR,Redacted - Personal Data,A046469,09/09/2020,1400363, 500.00 ,Grants,
North West Leicestershire District Council,31UH,Housing Repairs,HRA Housing Repairs & Maintenance,HRAHRM,DMW Environmental Safety Ltd,A044203,09/09/2020,1400505," 4,567.44 ",Legal & Professional Services,
North West Leicestershire District Council,31UH,Finance,Exchequer Services,EXCH,Beermat 4U,A042250,10/09/2020,1400569, 390.00 ,Advertising,Beermat
North West Leicestershire District Council,31UH,Finance,Exchequer Services,EXCH,DVLA,A042250,10/09/2020,1400569," 4,880.00 ",Licences,
North West Leicestershire District Council,31UH,Finance,Exchequer Services,EXCH,MyPTHub Fitii LTD,A042250,10/09/2020,1400569, 441.00 ,Training Expenditure,
North West Leicestershire District Council,31UH,Finance,Exchequer Services,EXCH,Digicert,A042250,10/09/2020,1400569," 1,562.51 ",Software Licences,
North West Leicestershire District Council,31UH,Finance,Financial Planning,FINPLA,Department for Communities & Local Government,A028518,10/09/2020,1400576," 2,713,119.00 ",Subsidy Receipts & Repayments,
North West Leicestershire District Council,31UH,Finance,Financial Planning,FINPLA,Leicestershire County Council,A000950,10/09/2020,1400577," 4,683,571.00 ",Precept,
North West Leicestershire District Council,31UH,Finance,Financial Planning,FINPLA,The Office of the Police and Crime Commissioner for Leicestershire,A007096,10/09/2020,1400578," 812,893.05 ",Precept,
North West Leicestershire District Council,31UH,Finance,Financial Planning,FINPLA,"Leicester, Leicestershire & Rutland Combined Fire Authority",A028339,10/09/2020,1400579," 236,911.00 ",Precept,
North West Leicestershire District Council,31UH,Finance,Financial Planning,FINPLA,Leicestershire County Council,A000950,10/09/2020,1400580," 1,988,179.00 ",Precept,
North West Leicestershire District Council,31UH,Finance,Exchequer Services,EXCH,Vodafone Limited,A001861,10/09/2020,1400581, 948.71 ,Mobile Telephones,
North West Leicestershire District Council,31UH,Information Technology,ICT Services,ICT,ACS Systems (UK) Ltd T/a ACS Office Solutions,A043447,17/09/2020,1399184, 407.00 ,Contract Payments (Other) Ext,
North West Leicestershire District Council,31UH,Information Technology,ICT Services,ICT,ACS Systems (UK) Ltd T/a ACS Office Solutions,A043447,17/09/2020,1399186, 547.50 ,Contract Payments (Other) Ext,
North West Leicestershire District Council,31UH,Information Technology,ICT Services,ICT,ACS Systems (UK) Ltd T/a ACS Office Solutions,A043447,17/09/2020,1399187," 9,762.00 ",Contract Payments (Other) Ext,
North West Leicestershire District Council,31UH,Housing Repairs,HRA Housing Repairs & Maintenance,HRAHRM,European Asbestos Services Ltd,A045507,17/09/2020,1400591," 12,035.87 ",Contract Payments (Dws) Ext,
North West Leicestershire District Council,31UH,Housing Repairs,HRA Housing Repairs & Maintenance,HRAHRM,European Asbestos Services Ltd,A045507,17/09/2020,1400592," 2,496.90 ",Contract Payments (Dws) Ext,
North West Leicestershire District Council,31UH,Housing Repairs,HRA Housing Repairs & Maintenance,HRAHRM,European Asbestos Services Ltd,A045507,17/09/2020,1400594, 832.30 ,Contract Payments (Dws) Ext,
North West Leicestershire District Council,31UH,Housing Repairs,HRA Housing Repairs & Maintenance,HRAHRM,European Asbestos Services Ltd,A045507,17/09/2020,1400595, 791.70 ,Contract Payments (Dws) Ext,
North West Leicestershire District Council,31UH,Housing Repairs,HRA Housing Repairs & Maintenance,HRAHRM,European Asbestos Services Ltd,A045507,17/09/2020,1400596," 1,437.40 ",Contract Payments (Dws) Ext,
North West Leicestershire District Council,31UH,Housing Repairs,HRA Housing Repairs & Maintenance,HRAHRM,European Asbestos Services Ltd,A045507,17/09/2020,1400597," 1,597.61 ",Contract Payments (Dws) Ext,
North West Leicestershire District Council,31UH,Housing Repairs,HRA Housing Repairs & Maintenance,HRAHRM,European Asbestos Services Ltd,A045507,17/09/2020,1400598," 1,250.48 ",Contract Payments (Dws) Ext,
North West Leicestershire District Council,31UH,Housing Repairs,HRA Housing Repairs & Maintenance,HRAHRM,European Asbestos Services Ltd,A045507,17/09/2020,1400599," 1,094.17 ",Contract Payments (Dws) Ext,
North West Leicestershire District Council,31UH,Housing Repairs,HRA Housing Repairs & Maintenance,HRAHRM,European Asbestos Services Ltd,A045507,17/09/2020,1400600," 8,753.36 ",Contract Payments (Dws) Ext,
North West Leicestershire District Council,31UH,Housing Repairs,HRA Housing Repairs & Maintenance,HRAHRM,European Asbestos Services Ltd,A045507,17/09/2020,1400601," 8,753.36 ",Contract Payments (Dws) Ext,
North West Leicestershire District Council,31UH,Housing Repairs,HRA Housing Repairs & Maintenance,HRAHRM,European Asbestos Services Ltd,A045507,17/09/2020,1400602, 563.90 ,Contract Payments (Dws) Ext,
North West Leicestershire District Council,31UH,Housing Repairs,HRA Housing Repairs & Maintenance,HRAHRM,European Asbestos Services Ltd,A045507,17/09/2020,1400603, 563.90 ,Contract Payments (Dws) Ext,
North West Leicestershire District Council,31UH,Housing Repairs,HRA Housing Repairs & Maintenance,HRAHRM,European Asbestos Services Ltd,A045507,17/09/2020,1400604, 423.20 ,Contract Payments (Dws) Ext,
North West Leicestershire District Council,31UH,Housing Repairs,HRA Housing Repairs & Maintenance,HRAHRM,European Asbestos Services Ltd,A045507,17/09/2020,1400605, 769.90 ,Contract Payments (Dws) Ext,
North West Leicestershire District Council,31UH,Housing Repairs,HRA Housing Repairs & Maintenance,HRAHRM,European Asbestos Services Ltd,A045507,17/09/2020,1400606," 5,255.32 ",Contract Payments (Dws) Ext,
North West Leicestershire District Council,31UH,Housing Repairs,HRA Housing Repairs & Maintenance,HRAHRM,European Asbestos Services Ltd,A045507,17/09/2020,1400607," 6,565.02 ",Contract Payments (Dws) Ext,
North West Leicestershire District Council,31UH,Finance,Exchequer Services,EXCH,Comensura Limited,A036958,17/09/2020,1400664," 25,043.20 ",Agency Staff,
North West Leicestershire District Council,31UH,Information Technology,ICT Services,ICT,ACS Systems (UK) Ltd T/a ACS Office Solutions,A043447,17/09/2020,1400677, 895.00 ,Contract Payments (Other) Ext,
North West Leicestershire District Council,31UH,Information Technology,ICT Services,ICT,ACS Systems (UK) Ltd T/a ACS Office Solutions,A043447,17/09/2020,1400678,"-11,727.50 ",Contract Payments (Other) Ext,
North West Leicestershire District Council,31UH,Housing,HRA Housing Management,HRAHM,JLA Limited,A043639,17/09/2020,1400687, 282.00 ,Cleaning & Domestic Equipment,
North West Leicestershire District Council,31UH,Legal & Democratic,Legal Services,LDLS,Lamb Building Chambers,A045908,17/09/2020,1400689, 853.20 ,Legal & Professional Services,
North West Leicestershire District Council,31UH,Housing Repairs,HRA Housing Repairs & Maintenance,HRAHRM,DMW Environmental Safety Ltd,A044203,17/09/2020,1400690, 779.56 ,Legal & Professional Services,
North West Leicestershire District Council,31UH,Housing,HRA Housing Management,HRAHM,Redacted - Personal Data,A046473,17/09/2020,1400691, 250.00 ,Surveillance,
North West Leicestershire District Council,31UH,Housing,HRA Housing Management,HRAHM,Redacted - Personal Data,A046472,17/09/2020,1400692, 250.00 ,Surveillance,
North West Leicestershire District Council,31UH,Finance,Exchequer Services,EXCH,Click Travel Ltd,A044308,17/09/2020,1400693," 2,504.44 ",Travel and Subsitence,
North West Leicestershire District Council,31UH,Housing Repairs,HRA Housing Repairs & Maintenance,HRAHRM,Sure Maintenance Ltd,A040460,17/09/2020,1400740," 2,337.56 ",Plumbing & Heating,
North West Leicestershire District Council,31UH,Housing Repairs,HRA Housing Repairs & Maintenance,HRAHRM,Sure Maintenance Ltd,A040460,17/09/2020,1400741, 816.41 ,Plumbing & Heating,
North West Leicestershire District Council,31UH,Housing Repairs,HRA Housing Repairs & Maintenance,HRAHRM,Sure Maintenance Ltd,A040460,17/09/2020,1400742," 19,741.62 ",Plumbing & Heating,
North West Leicestershire District Council,31UH,Housing Repairs,HRA Housing Repairs & Maintenance,HRAHRM,Sure Maintenance Ltd,A040460,17/09/2020,1400746," 13,803.55 ",Plumbing & Heating,
North West Leicestershire District Council,31UH,Housing Repairs,HRA Housing Repairs & Maintenance,HRAHRM,Sure Maintenance Ltd,A040460,17/09/2020,1400747, 975.00 ,Plumbing & Heating,
North West Leicestershire District Council,31UH,Housing Repairs,HRA Housing Repairs & Maintenance,HRAHRM,Sure Maintenance Ltd,A040460,17/09/2020,1400750, 393.50 ,Plumbing & Heating,
North West Leicestershire District Council,31UH,Housing,HRA Performance & Business Support,HRAPBS,Sure Maintenance Ltd,A040460,17/09/2020,1400751, 696.00 ,Plumbing & Heating,
North West Leicestershire District Council,31UH,Housing Repairs,HRA Housing Repairs & Maintenance,HRAHRM,Sure Maintenance Ltd,A040460,17/09/2020,1400752," 1,033.22 ",Plumbing & Heating,
North West Leicestershire District Council,31UH,Housing Repairs,HRA Housing Repairs & Maintenance,HRAHRM,Sure Maintenance Ltd,A040460,17/09/2020,1400753," 1,978.60 ",Plumbing & Heating,
North West Leicestershire District Council,31UH,Housing Repairs,HRA Housing Repairs & Maintenance,HRAHRM,Sure Maintenance Ltd,A040460,17/09/2020,1400754," 1,885.79 ",Plumbing & Heating,
North West Leicestershire District Council,31UH,Housing Repairs,HRA Housing Repairs & Maintenance,HRAHRM,Sure Maintenance Ltd,A040460,17/09/2020,1400755," 1,885.79 ",Plumbing & Heating,
North West Leicestershire District Council,31UH,Housing Repairs,HRA Housing Repairs & Maintenance,HRAHRM,European Asbestos Services Ltd,A045507,17/09/2020,1400763," 7,330.27 ",Contract Payments (Dws) Ext,
North West Leicestershire District Council,31UH,Property Services,Property Commercial Lettings,PROPCL,British Telecommunications Plc,A000233,17/09/2020,1400855, 551.80 ,Telephones,
North West Leicestershire District Council,31UH,Housing,HRA Housing Management,HRAHM,Central Ashby Tenants Association,A046481,17/09/2020,1400874, 700.00 ,Grants,
North West Leicestershire District Council,31UH,Finance,Financial Planning,FINPLA,Appleby Magna Parish Council,A000060,23/09/2020,1400893," 9,500.00 ",Precept,
North West Leicestershire District Council,31UH,Finance,Financial Planning,FINPLA,Ashby De La Zouch Town Council,A000091,23/09/2020,1400894," 245,536.37 ",Precept,
North West Leicestershire District Council,31UH,Finance,Financial Planning,FINPLA,Ashby Woulds Town Council,A000089,23/09/2020,1400895," 59,515.37 ",Precept,
North West Leicestershire District Council,31UH,Finance,Financial Planning,FINPLA,Belton Parish Council,A000164,23/09/2020,1400896," 14,348.37 ",Grants,
North West Leicestershire District Council,31UH,Finance,Financial Planning,FINPLA,Breedon On The Hill Parish Council,A000215,23/09/2020,1400897," 13,109.37 ",Precept,
North West Leicestershire District Council,31UH,Finance,Financial Planning,FINPLA,Castle Donington Parish Council,A000300,23/09/2020,1400898," 183,765.62 ",Precept,
North West Leicestershire District Council,31UH,Finance,Financial Planning,FINPLA,Charley Parish Council,A000322,23/09/2020,1400899," 2,272.75 ",Precept,
North West Leicestershire District Council,31UH,Finance,Financial Planning,FINPLA,Coleorton Parish Council,A000382,23/09/2020,1400900," 7,197.12 ",Precept,
North West Leicestershire District Council,31UH,Finance,Financial Planning,FINPLA,Ellistown And Battleflat Parish Council,A021576,23/09/2020,1400901," 33,864.62 ",Precept,
North West Leicestershire District Council,31UH,Finance,Financial Planning,FINPLA,Heather Parish Council,A000749,23/09/2020,1400902," 6,726.62 ",Precept,
North West Leicestershire District Council,31UH,Finance,Financial Planning,FINPLA,Hugglescote & Donington Le Heath,A038616,23/09/2020,1400903," 59,795.00 ",Precept,
North West Leicestershire District Council,31UH,Finance,Financial Planning,FINPLA,Ibstock Parish Council,A000807,23/09/2020,1400904," 100,362.37 ",Precept,
North West Leicestershire District Council,31UH,Finance,Financial Planning,FINPLA,Kegworth Parish Council,A000882,23/09/2020,1400906," 57,122.87 ",Precept,
North West Leicestershire District Council,31UH,Finance,Financial Planning,FINPLA,Lockington Cum Hemington PC,A000999,23/09/2020,1400907," 7,293.25 ",Precept,
North West Leicestershire District Council,31UH,Finance,Financial Planning,FINPLA,Long Whatton & Diseworth PC,A001010,23/09/2020,1400908," 20,590.75 ",Precept,
North West Leicestershire District Council,31UH,Finance,Financial Planning,FINPLA,Measham Parish Council,A014805,23/09/2020,1400909," 59,671.50 ",Precept,
North West Leicestershire District Council,31UH,Finance,Financial Planning,FINPLA,"Oakthorpe, Donisthorpe & Acresford Parish Council",A001234,23/09/2020,1400910," 29,500.00 ",Precept,
North West Leicestershire District Council,31UH,Finance,Financial Planning,FINPLA,Osgathorpe Parish Council,A001251,23/09/2020,1400911," 2,490.30 ",Precept,
North West Leicestershire District Council,31UH,Finance,Financial Planning,FINPLA,Packington Parish Council,A001257,23/09/2020,1400912," 11,254.00 ",Precept,
North West Leicestershire District Council,31UH,Finance,Financial Planning,FINPLA,Ravenstone With Snibston PC,A001364,23/09/2020,1400913," 27,915.75 ",Precept,
North West Leicestershire District Council,31UH,Finance,Financial Planning,FINPLA,Snarestone Parish Council,A001524,23/09/2020,1400914," 5,000.00 ",Precept,
North West Leicestershire District Council,31UH,Finance,Financial Planning,FINPLA,Swannington Parish Council,A001608,23/09/2020,1400916," 14,109.25 ",Precept,
North West Leicestershire District Council,31UH,Finance,Financial Planning,FINPLA,Swepstone Parish Council,A001613,23/09/2020,1400917," 11,349.50 ",Precept,
North West Leicestershire District Council,31UH,Finance,Financial Planning,FINPLA,Whitwick Parish Council,A038617,23/09/2020,1400918," 142,117.87 ",Precept,
North West Leicestershire District Council,31UH,Finance,Financial Planning,FINPLA,Worthington Parish Council,A001813,23/09/2020,1400919," 10,405.62 ",Precept,
North West Leicestershire District Council,31UH,Finance,Financial Planning,FINPLA,Sports & Leisure Management Ltd,A045556,,1400931,"-43,090.59 ",Payments To Contractor,
North West Leicestershire District Council,31UH,Finance,Exchequer Services,EXCH,Comensura Limited,A036958,23/09/2020,1400932," 20,608.60 ",Agency Staff,
North West Leicestershire District Council,31UH,Information Technology,ICT Services,ICT,Canon UK Ltd,A040459,23/09/2020,1400940," 5,070.61 ",Operational Equipment - Rep & Maint,
North West Leicestershire District Council,31UH,Street Management,Environment Transport,ENOT,Dennis Eagle Limited,A000522,23/09/2020,1400944,-299.92 ,Vehicle Part Purchases,
North West Leicestershire District Council,31UH,Housing Repairs,HRA Housing Repairs & Maintenance,HRAHRM,Robert Woodhead Ltd,A043924,23/09/2020,1400986," 18,186.79 ",Legal & Professional Services,
North West Leicestershire District Council,31UH,Street Management,Environment Parks,ENOP,Leicestershire County Council,A000950,23/09/2020,1400988, 434.29 ,Contract Cleaning,
North West Leicestershire District Council,31UH,Property Services,Property Commercial Lettings,PROPCL,British Telecommunications Plc,A000233,23/09/2020,1400993, 542.81 ,Telephones,
North West Leicestershire District Council,31UH,Housing,HRA Housing Management,HRAHM,JLA Limited,A043639,23/09/2020,1400994, 442.00 ,Cleaning & Domestic Equipment,
North West Leicestershire District Council,31UH,Housing,HRA Housing Management,HRAHM,Tennals Pest Control,A045705,23/09/2020,1401000, 669.50 ,Service Contracts,
North West Leicestershire District Council,31UH,Housing,HRA Housing Management,HRAHM,Water Plus Limited,A044043,23/09/2020,1401001, 736.84 ,Water Charges (Metered),
North West Leicestershire District Council,31UH,Finance,Financial Planning,FINPLA,Leicestershire County Council,A000951,23/09/2020,1401004," 3,164,000.00 ",Pension Fund Contribution,
North West Leicestershire District Council,31UH,Finance,Exchequer Services,EXCH,Comensura Limited,A036958,23/09/2020,1401012," 9,891.29 ",Agency Staff,
North West Leicestershire District Council,31UH,Communications,Corporate - Customer Services,CS,Neopost Limited,A000079,23/09/2020,1401020," 5,000.97 ",Postages,
North West Leicestershire District Council,31UH,Communications,Corporate - Communications,CP,Mark Saku Law PLLC,A046482,23/09/2020,1401025, 855.00 ,Licences,
North West Leicestershire District Council,31UH,Corporate Director,Human Resources,HR,Castle Damp & Timber Specialists Limited,A046384,23/09/2020,1401026," 1,185.00 ",Grants,
North West Leicestershire District Council,31UH,Legal & Democratic,Civic Expenses,LDCE,Centre for Public Scrutiny Lttd,A033740,23/09/2020,1401027," 2,100.00 ",Training Expenditure,
North West Leicestershire District Council,31UH,Housing,HRA Housing Management,HRAHM,JLA Limited,A043639,23/09/2020,1401028, 302.00 ,Cleaning & Domestic Equipment,
North West Leicestershire District Council,31UH,Finance,Exchequer Services,EXCH,Click Travel Ltd,A044308,23/09/2020,1401030," 2,867.25 ",Travel and Subsitence,
North West Leicestershire District Council,31UH,Corporate Director,Human Resources,HR,Bassetlaw District Council,A034704,23/09/2020,1401041," 3,750.00 ",Computing,
North West Leicestershire District Council,31UH,Housing Repairs,HRA Housing Repairs & Maintenance,HRAHRM,Orbis Property Protection Ltd,A028149,09/09/2020,1400506, 668.86 ,Void Property Clearance Services,
North West Leicestershire District Council,31UH,Housing Repairs,HRA Housing Repairs & Maintenance,HRAHRM,Orbis Property Protection Ltd,A028149,09/09/2020,1400507, 334.43 ,Void Property Clearance Services,
North West Leicestershire District Council,31UH,Housing Repairs,HRA Housing Repairs & Maintenance,HRAHRM,Orbis Property Protection Ltd,A028149,09/09/2020,1400510, 422.30 ,Void Property Clearance Services,
North West Leicestershire District Council,31UH,Housing Repairs,HRA Housing Repairs & Maintenance,HRAHRM,Orbis Property Protection Ltd,A028149,09/09/2020,1400511, 453.79 ,Void Property Clearance Services,
North West Leicestershire District Council,31UH,Housing Repairs,HRA Housing Repairs & Maintenance,HRAHRM,Orbis Property Protection Ltd,A028149,09/09/2020,1400513, 352.82 ,Void Property Clearance Services,
North West Leicestershire District Council,31UH,Housing Repairs,HRA Housing Repairs & Maintenance,HRAHRM,Orbis Property Protection Ltd,A028149,09/09/2020,1400515, 293.12 ,Void Property Clearance Services,
North West Leicestershire District Council,31UH,Housing Repairs,HRA Housing Repairs & Maintenance,HRAHRM,Orbis Property Protection Ltd,A028149,09/09/2020,1400516," 2,598.95 ",Void Property Clearance Services,
North West Leicestershire District Council,31UH,Housing Repairs,HRA Housing Repairs & Maintenance,HRAHRM,Premier Mobility UK Ltd,A045304,09/09/2020,1400517, 530.63 ,Plumbing & Heating,
North West Leicestershire District Council,31UH,Housing Repairs,HRA Housing Repairs & Maintenance,HRAHRM,Emperor Scaffolding Limited,A038405,09/09/2020,1400519, 840.00 ,Hire Of Operational Equipment,
North West Leicestershire District Council,31UH,Housing Repairs,HRA Housing Repairs & Maintenance,HRAHRM,Emperor Scaffolding Limited,A038405,09/09/2020,1400520, 560.00 ,Hire Of Operational Equipment,
North West Leicestershire District Council,31UH,Housing Repairs,HRA Housing Repairs & Maintenance,HRAHRM,Premier Mobility UK Ltd,A045304,09/09/2020,1400521," 1,674.76 ",Contract Payments (Dws) Ext,
North West Leicestershire District Council,31UH,Housing Repairs,HRA Housing Repairs & Maintenance,HRAHRM,Emperor Scaffolding Limited,A038405,09/09/2020,1400522, 400.00 ,Hire Of Operational Equipment,
North West Leicestershire District Council,31UH,Housing Repairs,HRA Housing Repairs & Maintenance,HRAHRM,Emperor Scaffolding Limited,A038405,09/09/2020,1400523, 420.00 ,Hire Of Operational Equipment,
North West Leicestershire District Council,31UH,Housing Repairs,HRA Housing Repairs & Maintenance,HRAHRM,Emperor Scaffolding Limited,A038405,09/09/2020,1400530, 680.00 ,Hire Of Operational Equipment,
North West Leicestershire District Council,31UH,Housing Repairs,HRA Housing Repairs & Maintenance,HRAHRM,Emperor Scaffolding Limited,A038405,09/09/2020,1400532, 375.00 ,Hire Of Operational Equipment,
North West Leicestershire District Council,31UH,Housing Repairs,HRA Housing Repairs & Maintenance,HRAHRM,Emperor Scaffolding Limited,A038405,09/09/2020,1400533, 375.00 ,Hire Of Operational Equipment,
North West Leicestershire District Council,31UH,Housing Repairs,HRA Housing Repairs & Maintenance,HRAHRM,Emperor Scaffolding Limited,A038405,09/09/2020,1400534, 560.00 ,Hire Of Operational Equipment,
North West Leicestershire District Council,31UH,Housing Repairs,HRA Housing Repairs & Maintenance,HRAHRM,TECSERV UK LIMITED,A028261,09/09/2020,1400540, 354.27 ,Contract Payments (Dws) Ext,
North West Leicestershire District Council,31UH,Housing Repairs,HRA Housing Repairs & Maintenance,HRAHRM,Cresswell Property Surveys,A022373,09/09/2020,1400547, 825.00 ,Legal & Professional Services,
North West Leicestershire District Council,31UH,Housing Repairs,HRA Housing Repairs & Maintenance,HRAHRM,Emperor Scaffolding Limited,A038405,09/09/2020,1400549," 1,200.00 ",Hire Of Operational Equipment,
